bitfinex-derivatives/quotes_BTCF0:USTF0_20241109
["timestamp","ask_amount","ask_price","bid_price","bid_amount"]
[1731119363379,0.13847711,76295.0,76294.0,0.17181405]
[1731119363576,0.06549,76290.0,76289.0,0.0521589]
[1731119363777,0.3608,76290.0,76287.0,0.00196621]
[1731119363982,0.065491,76288.0,76287.0,0.00196621]
[1731119368387,0.065491,76288.0,76287.0,0.06813472]
[1731119368589,0.065491,76288.0,76287.0,0.00196621]
[1731119369182,0.3608,76289.0,76288.0,0.065491]
[1731119369689,0.426291,76289.0,76288.0,0.065491]
[1731119370787,0.065491,76288.0,76287.0,0.00196621]
[1731119372192,0.065491,76288.0,76287.0,0.0541015]
[1731119373285,0.065491,76288.0,76287.0,0.00196621]
[1731119376485,0.065491,76288.0,76287.0,0.04106943]
[1731119376685,0.065491,76288.0,76287.0,0.00196621]
[1731119377580,0.065491,76288.0,76287.0,0.04107464]
[1731119377788,0.42846235,76289.0,76284.0,0.03310149]
[1731119377984,0.065494,76285.0,76281.0,0.065497]
[1731119379083,0.065494,76285.0,76284.0,0.07299211]
[1731119379283,0.065494,76285.0,76284.0,0.13848711]
[1731119380296,0.3608,76289.0,76284.0,0.07299211]
[1731119380593,0.3608,76289.0,76280.0,0.06440606]
[1731119380594,0.3608,76289.0,76288.0,0.13848311]
[1731119381405,0.426291,76289.0,76288.0,0.13848311]
[1731119384093,0.3608,76289.0,76288.0,0.13848311]
[1731119384293,0.3608,76289.0,76288.0,0.20367761]
[1731119386599,0.3608,76289.0,76288.0,0.35783684]
[1731119387193,0.3608,76289.0,76288.0,0.27929043]
[1731119389195,0.3608,76289.0,76288.0,0.36952415]
[1731119395600,0.3608,76293.0,76289.0,0.065491]
[1731119395901,0.3669,76302.0,76301.0,0.06548]
[1731119396103,0.3608,76302.0,76301.0,0.29260227]
[1731119396403,0.3608,76302.0,76301.0,0.21408493]
[1731119396599,0.3608,76302.0,76301.0,0.40269878]
[1731119396799,0.3608,76302.0,76301.0,0.32420493]
[1731119397309,0.3608,76302.0,76301.0,0.46862592]
[1731119398308,0.3608,76302.0,76301.0,0.39015334]
[1731119400299,0.3608,76302.0,76301.0,0.38970696]
[1731119401604,0.3608,76302.0,76301.0,0.31454052]
[1731119403107,0.065475,76307.0,76306.0,0.065476]
[1731119403309,0.1174292,76307.0,76306.0,0.065476]
[1731119407808,0.1174292,76307.0,76306.0,0.041476]
[1731119408022,0.0519542,76307.0,76306.0,0.041476]
[1731119408518,0.426273,76310.0,76306.0,0.041476]
[1731119408710,0.426273,76310.0,76309.0,0.03919883]
[1731119409311,0.426273,76310.0,76309.0,0.065473]
[1731119409504,0.426273,76310.0,76309.0,0.1046737]
[1731119410115,0.426273,76310.0,76309.0,0.065473]
[1731119410304,0.44116402,76310.0,76309.0,0.065473]
[1731119410909,0.065476,76306.0,76305.0,0.07299211]
[1731119411115,0.08036702,76306.0,76305.0,0.07299211]
[1731119411916,0.08036702,76306.0,76304.0,0.065477]
[1731119412228,0.01489102,76305.0,76301.0,0.17606841]
[1731119412407,0.07299211,76308.0,76301.0,0.17606841]
[1731119412408,0.065479,76302.0,76301.0,0.17606841]
[1731119412609,0.08037002,76302.0,76301.0,0.17606841]
[1731119413413,0.01489102,76302.0,76301.0,0.17606841]
[1731119413716,0.01489102,76302.0,76301.0,0.24154841]
[1731119413913,0.01523246,76302.0,76301.0,0.24154841]
[1731119415514,0.01492245,76302.0,76301.0,0.24154841]
[1731119416117,0.01492245,76302.0,76301.0,0.30691248]
[1731119416319,0.01492245,76302.0,76301.0,0.38169933]
[1731119416918,0.03,76303.0,76301.0,0.25085526]
[1731119417121,0.03,76303.0,76301.0,0.24154841]
[1731119417122,0.01487494,76302.0,76301.0,0.24154841]
[1731119417418,0.03,76303.0,76302.0,0.065479]
[1731119417618,0.03,76303.0,76302.0,0.20560845]
[1731119418512,0.03,76303.0,76302.0,0.14021554]
[1731119418920,0.3608,76304.0,76303.0,0.065479]
[1731119419116,0.3608,76304.0,76303.0,0.21320765]
[1731119420717,0.3608,76304.0,76303.0,0.28619976]
[1731119421019,0.0386,76312.0,76310.0,0.065473]
[1731119421223,0.0325,76312.0,76310.0,0.21320165]
[1731119422523,0.0325,76312.0,76311.0,0.065472]
[1731119422724,0.0325,76312.0,76311.0,0.13820854]
[1731119423627,0.0325,76312.0,76311.0,0.063472]
[1731119423927,0.0325,76312.0,76298.0,0.0315]
[1731119423928,0.9116232,76312.0,76290.0,0.00196598]
[1731119424220,0.3608,76293.0,76286.0,0.06651644]
[1731119424419,0.3608,76293.0,76281.0,0.426297]
[1731119424420,0.39567373,76292.0,76281.0,0.426297]
[1731119424729,0.14345144,76289.0,76284.0,0.07299211]
[1731119424916,0.12594928,76288.0,76284.0,0.07299211]
[1731119425111,0.12594928,76287.0,76284.0,0.07299211]
[1731119425316,0.12594928,76286.0,76284.0,0.07299211]
[1731119425517,0.12594928,76285.0,76284.0,0.07299211]
[1731119426323,0.12594928,76285.0,76284.0,0.11764]
[1731119426521,0.12594928,76285.0,76281.0,0.06506787]
[1731119426721,0.12594928,76284.0,76282.0,0.11764]
[1731119427021,0.3608,76286.0,76282.0,0.11764]
[1731119427022,0.12601354,76283.0,76282.0,0.11764]
[1731119427228,0.12708199,76283.0,76282.0,0.11764]
[1731119428719,0.12708199,76283.0,76280.0,0.07299211]
[1731119428924,0.12708199,76282.0,76280.0,0.07299211]
[1731119429129,0.12708199,76281.0,76280.0,0.07299211]
[1731119429931,0.01614913,76281.0,76280.0,0.07299211]
[1731119430120,0.03647459,76281.0,76280.0,0.07299211]
[1731119430525,0.03675322,76281.0,76280.0,0.07299211]
[1731119431323,0.01643082,76281.0,76280.0,0.07299211]
[1731119434020,0.3608,76286.0,76281.0,0.065497]
[1731119434216,0.3608,76286.0,76285.0,0.07299211]
[1731119434427,0.37719118,76286.0,76285.0,0.07299211]
[1731119435631,0.01639118,76286.0,76285.0,0.07299211]
[1731119436230,0.01639118,76286.0,76285.0,0.14598422]
[1731119436424,0.01639118,76286.0,76285.0,0.20738422]
[1731119436824,0.01639118,76286.0,76285.0,0.25207211]
[1731119437331,0.02641334,76296.0,76285.0,0.29286421]
[1731119437332,0.0061,76296.0,76285.0,0.29286421]
[1731119437526,0.03690257,76295.0,76285.0,0.17908]
[1731119437734,0.01658438,76294.0,76290.0,0.06549]
[1731119437922,0.01658438,76293.0,76291.0,0.11378421]
[1731119438124,0.01658438,76292.0,76291.0,0.11378421]
[1731119438525,0.01658438,76294.0,76291.0,0.11378421]
[1731119438720,0.01658438,76293.0,76292.0,0.15252638]
[1731119439130,0.03690257,76296.0,76292.0,0.15252638]
[1731119439323,0.01658438,76295.0,76292.0,0.15252638]
[1731119439533,0.01658438,76294.0,76292.0,0.15252638]
[1731119439733,0.01658438,76293.0,76292.0,0.0783477]
[1731119440035,0.03690257,76296.0,76292.0,0.0783477]
[1731119440234,0.03690257,76295.0,76292.0,0.0783477]
[1731119440436,0.01658438,76294.0,76292.0,0.0783477]
[1731119440633,0.01658438,76293.0,76292.0,0.0783477]
[1731119440834,0.0061,76305.0,76292.0,0.0783477]
[1731119441037,0.02032101,76295.0,76293.0,0.065487]
[1731119441230,0.06548,76302.0,76297.0,0.065483]
[1731119441437,0.01667371,76301.0,76297.0,0.065483]
[1731119441735,0.01667371,76300.0,76297.0,0.065483]
[1731119442037,0.08215571,76299.0,76297.0,0.065483]
[1731119442232,0.01667371,76298.0,76297.0,0.065483]
[1731119443936,0.08215671,76298.0,76297.0,0.065483]
[1731119444451,0.08168489,76298.0,76297.0,0.065483]
[1731119445238,0.01620189,76298.0,76287.0,0.3608]
[1731119445441,0.3608,76296.0,76281.0,0.11378421]
[1731119445635,0.3608,76296.0,76288.0,0.065491]
[1731119445636,0.02032275,76294.0,76288.0,0.065491]
[1731119445837,0.02032275,76294.0,76289.0,0.06549]
[1731119446139,0.08580975,76294.0,76289.0,0.06549]
[1731119446732,0.065487,76294.0,76292.0,0.06529872]
[1731119447736,0.065487,76294.0,76293.0,0.06529872]
[1731119448043,0.065487,76294.0,76292.0,0.06529872]
[1731119448231,0.065487,76294.0,76293.0,0.06529872]
[1731119448432,0.08205166,76294.0,76293.0,0.06529872]
[1731119449335,0.08205166,76294.0,76293.0,0.13960927]
[1731119450740,0.08205166,76294.0,76293.0,0.07431055]
[1731119451240,0.09024347,76294.0,76293.0,0.07431055]
[1731119453637,0.09024347,76294.0,76293.0,0.15265825]
[1731119454139,0.09024347,76294.0,76293.0,0.07431055]
[1731119454539,0.09024347,76294.0,76293.0,0.15265825]
[1731119454734,0.09024347,76294.0,76292.0,0.065487]
[1731119454941,0.02475647,76293.0,76292.0,0.065487]
[1731119455245,0.01656466,76293.0,76292.0,0.065487]
[1731119455451,0.01656466,76293.0,76292.0,0.17927121]
[1731119456042,0.01656466,76295.0,76292.0,0.11378421]
[1731119456240,0.01633786,76294.0,76293.0,0.065487]
[1731119457453,0.01635547,76294.0,76293.0,0.065487]
[1731119458144,0.37715547,76294.0,76293.0,0.065487]
[1731119459350,0.37715547,76294.0,76293.0,0.13853444]
[1731119461736,0.37715547,76294.0,76293.0,0.21320773]
[1731119461941,0.14345144,76334.0,76293.0,0.21320773]
[1731119461942,0.0061,76308.0,76293.0,0.82386644]
[1731119462139,0.0061,76313.0,76307.0,0.43384744]
[1731119462350,0.093,76324.0,76312.0,0.07304744]
[1731119462539,0.093,76324.0,76322.0,0.06540244]
[1731119462739,0.093,76324.0,76319.0,0.06540244]
[1731119462947,0.093,76324.0,76314.0,0.07848293]
[1731119462948,0.50689488,76320.0,76314.0,0.06540244]
[1731119463151,0.13851544,76315.0,76313.0,0.06538763]
[1731119463348,0.13851544,76315.0,76311.0,0.06538763]
[1731119463349,0.07304744,76314.0,76311.0,0.06538763]
[1731119463643,0.07304744,76312.0,76311.0,0.06538763]
[1731119463849,0.07304744,76312.0,76310.0,0.06538763]
[1731119464050,0.0937,76311.0,76305.0,0.07848293]
[1731119464350,0.0937,76311.0,76310.0,0.06538757]
[1731119464653,0.0937,76311.0,76310.0,0.13966962]
[1731119465851,0.0937,76311.0,76310.0,0.07428205]
[1731119466049,0.0937,76311.0,76310.0,0.13966701]
[1731119466852,0.0937,76311.0,76310.0,0.06538496]
[1731119467052,0.0937,76311.0,76310.0,0.13957363]
[1731119467248,0.48682,76311.0,76309.0,0.06538496]
[1731119467456,0.07304744,76310.0,76307.0,0.06538496]
[1731119467646,0.065476,76307.0,76304.0,0.06538496]
[1731119467845,0.065476,76307.0,76303.0,0.06538496]
[1731119468449,0.065476,76307.0,76303.0,0.04138496]
[1731119469150,0.065476,76307.0,76298.0,0.43928293]
[1731119469349,0.065476,76307.0,76299.0,0.07434027]
[1731119469543,0.065476,76307.0,76298.0,0.43928293]
[1731119469544,0.065476,76307.0,76300.0,0.07434027]
[1731119469752,0.11298355,76306.0,76298.0,0.36152]
[1731119470050,0.065476,76307.0,76298.0,0.36152]
[1731119470051,0.05282794,76305.0,76298.0,0.3608]
[1731119470242,0.05282794,76304.0,76298.0,0.3608]
[1731119470442,0.05282794,76303.0,76298.0,0.3608]
[1731119470643,0.05282794,76302.0,76298.0,0.3608]
[1731119470848,0.05282794,76301.0,76300.0,0.07304744]
[1731119471052,0.3669,76313.0,76311.0,0.065472]
[1731119471244,0.1139434,76312.0,76311.0,0.059372]
[1731119471447,0.1139434,76312.0,76311.0,0.13241944]
[1731119473552,0.1139434,76312.0,76311.0,0.059372]
[1731119473747,0.05327674,76312.0,76311.0,0.059372]
[1731119475549,0.05327674,76312.0,76307.0,0.3608]
[1731119475748,0.3608,76313.0,76307.0,0.3608]
[1731119475749,0.05327674,76311.0,76307.0,0.3608]
[1731119476046,0.05327674,76310.0,76307.0,0.3608]
[1731119476251,0.05327674,76309.0,76306.0,0.0321]
[1731119476452,0.05327674,76308.0,76306.0,0.0321]
[1731119476757,0.065471,76312.0,76306.0,0.0321]
[1731119476960,0.065471,76312.0,76305.0,0.065476]
[1731119476961,0.3608,76313.0,76305.0,0.065476]
[1731119477142,0.3608,76313.0,76300.0,0.0978912]
[1731119477343,0.065475,76308.0,76300.0,0.0978912]
[1731119477755,0.0061,76312.0,76300.0,0.065481]
[1731119478052,0.065482,76299.0,76298.0,0.00068]
[1731119478248,0.065482,76299.0,76292.0,0.065488]
[1731119479451,0.065482,76299.0,76293.0,0.065487]
[1731119480056,0.065482,76299.0,76294.0,0.065486]
[1731119482058,0.065482,76299.0,76295.0,0.065485]
[1731119484954,0.11162332,76298.0,76295.0,0.065485]
[1731119485153,0.11162332,76297.0,76295.0,0.065485]
[1731119485353,0.11162332,76296.0,76295.0,0.065485]
[1731119486363,0.11160278,76296.0,76295.0,0.065485]
[1731119486859,0.11160278,76296.0,76290.0,0.3608]
[1731119486860,0.05218233,76296.0,76290.0,0.3608]
[1731119487053,0.05218233,76295.0,76290.0,0.426289]
[1731119487251,0.3608,76302.0,76291.0,0.3608]
[1731119487252,0.05218233,76294.0,76291.0,0.3608]
[1731119487458,0.065488,76292.0,76289.0,0.00196594]
[1731119487653,0.11144662,76291.0,76289.0,0.00196594]
[1731119487863,0.11144662,76290.0,76289.0,0.00196594]
[1731119490562,0.11144662,76290.0,76289.0,0.06745694]
[1731119491959,0.065488,76292.0,76289.0,0.14233746]
[1731119492157,0.065488,76292.0,76290.0,0.07488052]
[1731119492361,0.065488,76292.0,76291.0,0.07488052]
[1731119493660,0.065488,76292.0,76291.0,0.07486011]
[1731119493862,0.065488,76292.0,76291.0,0.07486107]
[1731119495760,0.065488,76292.0,76291.0,0.07487624]
[1731119499363,0.065488,76292.0,76291.0,0.14793778]
[1731119499973,0.065488,76292.0,76291.0,0.07306154]
[1731119500562,0.0061,76299.0,76291.0,0.07306154]
[1731119500762,0.065486,76295.0,76294.0,0.03921463]
[1731119501063,0.0608,76301.0,76293.0,0.03921393]
[1731119501064,0.065486,76294.0,76293.0,0.03921393]
[1731119501269,0.065486,76294.0,76293.0,0.3608]
[1731119501473,0.065482,76299.0,76293.0,0.3608]
[1731119501672,0.065483,76298.0,76297.0,0.03921635]
[1731119502066,0.065483,76298.0,76296.0,0.065485]
[1731119502271,0.3608,76302.0,76293.0,0.41308786]
[1731119502574,0.42628,76302.0,76299.0,0.03922229]
[1731119502768,0.42628,76302.0,76299.0,0.17776583]
[1731119502971,0.3608,76302.0,76299.0,0.11228383]
[1731119503176,0.3608,76302.0,76301.0,0.10470229]
[1731119503472,0.3608,76302.0,76301.0,0.06548]
[1731119503671,0.3608,76302.0,76301.0,0.1365086]
[1731119504272,0.3608,76302.0,76301.0,0.09728]
[1731119505372,0.0061,76309.0,76301.0,0.50635794]
[1731119505678,0.065474,76309.0,76308.0,0.065474]
[1731119506866,0.17821691,76309.0,76308.0,0.02110505]
[1731119507073,0.17821691,76309.0,76306.0,0.065476]
[1731119507275,0.18373851,76308.0,76306.0,0.065476]
[1731119507475,0.11274291,76307.0,76306.0,0.065476]
[1731119509776,0.11196448,76307.0,76306.0,0.06571644]
[1731119510078,0.11196448,76307.0,76306.0,0.065476]
[1731119510477,0.11196448,76307.0,76306.0,0.17923394]
[1731119513908,0.11203111,76309.0,76306.0,0.11375794]
[1731119514085,0.11203111,76308.0,76307.0,0.065475]
[1731119514494,0.11202019,76308.0,76306.0,0.11375794]
[1731119514694,0.11202019,76307.0,76306.0,0.17923394]
[1731119514895,0.065473,76310.0,76306.0,0.11375794]
[1731119515094,0.065473,76310.0,76309.0,0.065473]
[1731119520602,0.3608,76313.0,76306.0,0.15296738]
[1731119520903,0.3608,76313.0,76310.0,0.065472]
[1731119521097,0.065469,76314.0,76310.0,0.065472]
[1731119521702,0.065469,76314.0,76311.0,0.065472]
[1731119521898,0.065469,76314.0,76306.0,0.15296738]
[1731119521899,0.11239794,76313.0,76306.0,0.11375794]
[1731119522097,0.11239794,76312.0,76311.0,0.065472]
[1731119523113,0.14339299,76312.0,76311.0,0.065472]
[1731119523401,0.11239794,76312.0,76311.0,0.17922994]
[1731119525107,0.11239794,76312.0,76311.0,0.24349537]
[1731119526900,0.05255412,76312.0,76311.0,0.24349537]
[1731119527213,0.05255412,76315.0,76311.0,0.24349537]
[1731119527420,0.065462,76322.0,76321.0,0.065463]
[1731119527707,0.17838496,76322.0,76321.0,0.065463]
[1731119528411,0.17838496,76322.0,76321.0,0.13846928]
[1731119528912,0.11292296,76322.0,76321.0,0.13846928]
[1731119530010,0.1434019,76326.0,76325.0,0.06546]
[1731119530215,0.065459,76327.0,76326.0,0.065459]
[1731119536110,0.3608,76328.0,76325.0,0.07300628]
[1731119536111,0.3608,76328.0,76327.0,0.065458]
[1731119536313,0.129552,76334.0,76333.0,0.065453]
[1731119540421,0.065452,76334.0,76333.0,0.065453]
[1731119541216,0.0122,76343.0,76334.0,0.065452]
[1731119541420,0.0122,76343.0,76333.0,0.07300628]
[1731119541421,0.065445,76343.0,76342.0,0.07300628]
[1731119542718,0.065445,76343.0,76342.0,0.43380628]
[1731119542919,0.065445,76343.0,76342.0,0.13845128]
[1731119543120,0.0122,76352.0,76342.0,0.07300628]
[1731119543328,0.06544,76348.0,76347.0,0.07300628]
[1731119544115,0.16760628,76353.0,76348.0,0.06544]
[1731119544116,0.065437,76352.0,76348.0,0.06544]
[1731119544317,0.065437,76352.0,76351.0,0.07300628]
[1731119545116,0.065437,76352.0,76341.0,0.38269474]
[1731119545117,0.13811479,76352.0,76341.0,0.38269474]
[1731119545420,0.065437,76352.0,76350.0,0.07300628]
[1731119546330,0.18370343,76351.0,76341.0,0.34328663]
[1731119546514,0.18370343,76350.0,76349.0,0.07300628]
[1731119547321,0.11272139,76350.0,76349.0,0.13844528]
[1731119547627,0.11272139,76350.0,76349.0,0.11444528]
[1731119547924,0.18370343,76350.0,76349.0,0.18745156]
[1731119548218,0.18370343,76350.0,76349.0,0.21145156]
[1731119549227,0.18370343,76350.0,76349.0,0.20500292]
[1731119550919,0.0061,76356.0,76349.0,0.13956392]
[1731119551121,0.065432,76358.0,76355.0,0.13844028]
[1731119551323,0.065432,76358.0,76355.0,0.07300628]
[1731119551524,0.0332,76361.0,76360.0,0.06543]
[1731119551719,0.0332,76361.0,76360.0,0.13843628]
[1731119551926,0.14032846,76361.0,76360.0,0.13843628]
[1731119552115,0.098629,76361.0,76360.0,0.13843628]
[1731119552916,0.065429,76361.0,76360.0,0.13843628]
[1731119554322,0.065426,76364.0,76362.0,0.065428]
[1731119555527,0.39266001,76365.0,76362.0,0.065428]
[1731119555727,0.065427,76363.0,76362.0,0.065428]
[1731119558136,0.39278,76365.0,76362.0,0.065428]
[1731119558335,0.3917,76365.0,76364.0,0.07300628]
[1731119558733,0.3917,76365.0,76362.0,0.065428]
[1731119558934,0.3608,76365.0,76364.0,0.07300628]
[1731119559726,0.426225,76365.0,76364.0,0.07300628]
[1731119560132,0.59954356,76365.0,76364.0,0.07300628]
[1731119560333,0.59954356,76365.0,76364.0,0.02603267]
[1731119561146,0.23874356,76365.0,76364.0,0.02603267]
[1731119561356,0.23874356,76365.0,76364.0,0.09145867]
[1731119561551,0.17331856,76365.0,76364.0,0.09145867]
[1731119561737,0.2755015,76365.0,76364.0,0.09145867]
[1731119562149,0.10634918,76365.0,76364.0,0.09145867]
[1731119565444,0.10634918,76365.0,76364.0,0.15811236]
[1731119565646,0.17177418,76365.0,76364.0,0.15811236]
[1731119567157,0.065425,76365.0,76364.0,0.15811236]
[1731119570763,0.426222,76369.0,76368.0,0.065423]
[1731119571053,0.426222,76369.0,76368.0,0.13842928]
[1731119572251,0.3608,76369.0,76368.0,0.13842928]
[1731119573456,0.06542,76372.0,76368.0,0.43380628]
[1731119573759,0.06542,76372.0,76371.0,0.06542]
[1731119574155,0.06542,76372.0,76371.0,0.06342]
[1731119575257,0.16758926,76372.0,76371.0,0.07300628]
[1731119575654,0.16758926,76372.0,76371.0,0.13842628]
[1731119577255,0.16758926,76372.0,76371.0,0.06542]
[1731119577563,0.16758926,76372.0,76371.0,0.13842628]
[1731119579265,0.16277815,76372.0,76371.0,0.13842628]
[1731119580664,0.065425,76365.0,76364.0,0.06665369]
[1731119580859,0.15832237,76365.0,76352.0,0.0061]
[1731119581060,0.065432,76357.0,76356.0,0.26275828]
[1731119581260,0.22375437,76357.0,76356.0,0.13843828]
[1731119581670,0.39290669,76357.0,76356.0,0.13843828]
[1731119582172,0.065432,76357.0,76356.0,0.13843828]
[1731119584666,0.065432,76357.0,76356.0,0.07300628]
[1731119584966,0.3608,76361.0,76351.0,0.065437]
[1731119584967,0.065437,76352.0,76351.0,0.065437]
[1731119585169,0.065441,76348.0,76347.0,0.06544]
[1731119585363,0.3608,76353.0,76346.0,0.07300628]
[1731119585364,0.065441,76347.0,76346.0,0.07300628]
[1731119585562,0.098241,76347.0,76346.0,0.07300628]
[1731119585868,0.098241,76347.0,76346.0,0.13844828]
[1731119586458,0.0328,76347.0,76346.0,0.13844828]
[1731119586865,0.0328,76347.0,76339.0,0.06445624]
[1731119587055,0.065444,76343.0,76339.0,0.12432]
[1731119587261,0.065444,76343.0,76342.0,0.13845128]
[1731119588066,0.065443,76345.0,76341.0,0.07300628]
[1731119588265,0.3608,76346.0,76341.0,0.07300628]
[1731119588266,0.130645,76342.0,76341.0,0.07300628]
[1731119590170,0.130645,76342.0,76341.0,0.15404566]
[1731119591675,0.130645,76342.0,76341.0,0.13824597]
[1731119591876,0.130645,76342.0,76341.0,0.07300628]
[1731119592963,0.0652,76342.0,76340.0,0.06523969]
[1731119593162,0.0652,76342.0,76338.0,0.06523969]
[1731119593372,0.426248,76339.0,76336.0,0.06523969]
[1731119593575,0.426248,76339.0,76333.0,0.00196503]
[1731119593576,0.065451,76335.0,76334.0,0.06523969]
[1731119593768,0.065449,76338.0,76334.0,0.07300628]
[1731119594076,0.065449,76338.0,76337.0,0.05217337]
[1731119594266,0.065449,76337.0,76336.0,0.05217337]
[1731119595281,0.06545,76336.0,76335.0,0.05217337]
[1731119596284,0.065451,76335.0,76334.0,0.19063165]
[1731119596682,0.065451,76335.0,76334.0,0.07300628]
[1731119596874,0.3608,76339.0,76333.0,0.00196503]
[1731119596875,0.43380628,76336.0,76333.0,0.00196503]
[1731119597081,0.065452,76334.0,76333.0,0.00196503]
[1731119600674,0.36176001,76336.0,76333.0,0.06741803]
[1731119600982,0.3608,76336.0,76335.0,0.07300628]
[1731119601483,0.3608,76336.0,76335.0,0.13845728]
[1731119603883,0.3608,76336.0,76335.0,0.11445728]
[1731119604481,0.3608,76336.0,76335.0,0.17910348]
[1731119604678,0.3608,76336.0,76335.0,0.21820113]
[1731119604882,0.3608,76336.0,76335.0,0.25210976]
[1731119605383,0.3608,76336.0,76335.0,0.30428313]
[1731119605579,0.3608,76336.0,76335.0,0.20310348]
[1731119605978,0.0061,76340.0,76339.0,0.065448]
[1731119606184,0.065445,76342.0,76340.0,0.065446]
[1731119606379,0.065445,76342.0,76341.0,0.10450946]
[1731119606684,0.065445,76342.0,76341.0,0.065446]
[1731119608486,0.065445,76342.0,76341.0,0.11752579]
[1731119609281,0.065445,76342.0,76341.0,0.065446]
[1731119610082,0.3608,76343.0,76342.0,0.065445]
[1731119612184,0.3608,76343.0,76342.0,0.13068469]
[1731119612480,0.40413608,76343.0,76342.0,0.065445]
[1731119613885,0.45353663,76343.0,76342.0,0.065445]
[1731119614990,0.3608,76343.0,76342.0,0.065445]
[1731119615592,0.0061,76348.0,76347.0,0.065441]
[1731119615890,0.065435,76354.0,76353.0,0.065436]
[1731119615891,0.071535,76354.0,76353.0,0.065436]
[1731119616087,0.065435,76354.0,76353.0,0.13844228]
[1731119616290,0.14359436,76357.0,76353.0,0.07300628]
[1731119616491,0.14359436,76357.0,76356.0,0.065433]
[1731119616492,0.065433,76357.0,76356.0,0.065433]
[1731119616693,0.12477056,76357.0,76356.0,0.02837956]
[1731119616882,0.05933756,76357.0,76356.0,0.02837956]
[1731119618182,0.05933756,76357.0,76356.0,0.09228758]
[1731119618394,0.15335344,76357.0,76356.0,0.09228758]
[1731119618591,0.09401588,76357.0,76356.0,0.09228758]
[1731119618786,0.3608,76358.0,76357.0,0.065432]
[1731119618992,0.3608,76358.0,76357.0,0.11443828]
[1731119619378,0.426231,76358.0,76357.0,0.11443828]
[1731119627690,0.426231,76358.0,76357.0,0.07300628]
[1731119628098,0.065431,76358.0,76357.0,0.07300628]
[1731119630694,0.3608,76361.0,76355.0,0.065434]
[1731119630894,0.065432,76357.0,76355.0,0.065434]
[1731119631497,0.07300628,76357.0,76353.0,0.06554856]
[1731119631695,0.065436,76353.0,76346.0,0.071541]
[1731119631890,0.0303,76352.0,76346.0,0.065441]
[1731119632099,0.065439,76350.0,76346.0,0.065441]
[1731119632299,0.032,76349.0,76346.0,0.065441]
[1731119633501,0.032,76349.0,76346.0,0.13227175]
[1731119633894,0.032,76349.0,76346.0,0.06683075]
[1731119634199,0.032,76349.0,76348.0,0.06544]
[1731119634900,0.12547802,76349.0,76348.0,0.06544]
[1731119639789,0.09347802,76349.0,76348.0,0.06544]
[1731119640001,0.0437077,76349.0,76348.0,0.06544]
[1731119640299,0.09372404,76352.0,76351.0,0.065437]
[1731119640499,0.09349779,76352.0,76351.0,0.54580628]
[1731119640691,0.18709,76352.0,76351.0,0.538237]
[1731119641193,0.09349779,76352.0,76351.0,0.61124328]
[1731119641393,0.04371694,76352.0,76351.0,0.61124328]
[1731119641588,0.04371694,76352.0,76351.0,0.538237]
[1731119641797,0.09349779,76352.0,76351.0,0.61124328]
[1731119642301,0.04371694,76352.0,76351.0,0.61124328]
[1731119642699,0.04978085,76354.0,76351.0,0.61124328]
[1731119642700,0.071535,76355.0,76354.0,0.065435]
[1731119642897,0.065435,76355.0,76354.0,0.14636563]
[1731119643102,0.065435,76355.0,76354.0,0.22481712]
[1731119643595,0.065435,76355.0,76354.0,0.14635952]
[1731119646603,0.065435,76355.0,76354.0,0.21262292]
[1731119648906,0.065435,76355.0,76354.0,0.21062292]
[1731119649703,0.15917865,76355.0,76354.0,0.1296984]
[1731119651304,0.15917865,76355.0,76354.0,0.0565697]
[1731119651601,0.15917865,76355.0,76354.0,0.065435]
[1731119653304,0.15793758,76355.0,76354.0,0.02911074]
[1731119657714,0.065435,76355.0,76354.0,0.02911074]
[1731119663313,0.065435,76355.0,76354.0,0.1020452]
[1731119664814,0.15791848,76355.0,76354.0,0.1020452]
[1731119667418,0.065435,76355.0,76354.0,0.1020452]
[1731119667625,0.10877203,76355.0,76354.0,0.1020452]
[1731119667828,0.15812027,76355.0,76354.0,0.1020452]
[1731119670941,0.15812027,76355.0,76354.0,0.02911074]
[1731119671145,0.065437,76352.0,76351.0,0.065437]
[1731119671440,0.15812227,76352.0,76351.0,0.065437]
[1731119672242,0.15558511,76352.0,76351.0,0.065437]
[1731119672849,0.065437,76352.0,76351.0,0.24587087]
[1731119673447,0.065437,76352.0,76351.0,0.14775038]
[1731119674038,0.065437,76352.0,76351.0,0.08231338]
[1731119674547,0.13837146,76352.0,76351.0,0.08231338]
[1731119674850,0.13837146,76352.0,76351.0,0.14776985]
[1731119675240,0.065438,76350.0,76349.0,0.06545647]
[1731119675447,0.065439,76349.0,76348.0,0.06545647]
[1731119675748,0.06544,76348.0,76347.0,0.06545647]
[1731119675944,0.06544,76348.0,76347.0,0.14811254]
[1731119676351,0.06544,76348.0,76342.0,0.14398982]
[1731119676352,0.065441,76347.0,76346.0,0.06545647]
[1731119676547,0.426241,76347.0,76346.0,0.14807507]
[1731119676745,0.426241,76347.0,76346.0,0.14806623]
[1731119677447,0.426241,76347.0,76346.0,0.06545647]
[1731119677753,0.3608,76347.0,76345.0,0.06545647]
[1731119678056,0.065442,76346.0,76345.0,0.06545647]
[1731119678251,0.426242,76346.0,76345.0,0.14802151]
[1731119678550,0.065442,76346.0,76345.0,0.08255149]
[1731119678745,0.065442,76346.0,76345.0,0.08244536]
[1731119681458,0.426242,76346.0,76345.0,0.14780599]
[1731119681656,0.426242,76346.0,76345.0,0.1478494]
[1731119681846,0.426242,76346.0,76345.0,0.14787789]
[1731119682746,0.426242,76346.0,76345.0,0.14787322]
[1731119683352,0.426242,76346.0,76345.0,0.06535596]
[1731119683553,0.426242,76346.0,76345.0,0.14779887]
[1731119683750,0.3608,76346.0,76344.0,0.065443]
[1731119683959,0.065444,76343.0,76342.0,0.06424355]
[1731119684157,0.065444,76343.0,76341.0,0.20373642]
[1731119684362,0.065444,76343.0,76341.0,0.13838046]
[1731119684859,0.065444,76343.0,76342.0,0.065445]
[1731119685962,0.3608,76346.0,76341.0,0.06501533]
[1731119686157,0.065446,76341.0,76340.0,0.06535596]
[1731119686355,0.065447,76340.0,76339.0,0.065448]
[1731119686553,0.065448,76339.0,76338.0,0.00196466]
[1731119686748,0.15305792,76339.0,76338.0,0.00196466]
[1731119688654,0.06545,76336.0,76335.0,0.07293446]
[1731119688855,0.42625,76336.0,76335.0,0.07293446]
[1731119689061,0.46710552,76336.0,76335.0,0.07293446]